bitfinex-derivatives/quotes_ETHF0:USTF0_20250520
["timestamp","ask_amount","ask_price","bid_price","bid_amount"]
[1747757756224,9.46535,2475.9,2475.8,0.22065604]
[1747757756522,16.48486,2475.9,2475.8,0.22065604]
[1747757756719,0.80772,2475.4,2475.3,0.6403]
[1747757756918,0.80775,2475.3,2475.2,0.6394]
[1747757757119,0.80778,2475.2,2475.1,8.46171322]
[1747757757817,0.80778,2475.2,2475.1,0.22671322]
[1747757757818,6.17786,2475.2,2475.1,0.22671322]
[1747757759017,6.12167,2475.2,2475.1,0.22671322]
[1747757759216,11.12167,2475.2,2475.1,0.00605718]
[1747757759422,11.12167,2475.2,2475.1,7.18e-06]
[1747757759620,19.35767,2475.2,2475.1,7.18e-06]
[1747757760326,0.80801,2474.5,2474.4,0.29581304]
[1747757760521,0.80801,2474.5,2473.7,0.73255226]
[1747757760522,0.80824,2473.8,2473.7,0.73255226]
[1747757760720,6.69604,2473.8,2473.7,0.73255226]
[1747757760919,8.71726501,2473.8,2473.7,0.73255226]
[1747757761418,12.90902501,2473.8,2473.6,0.44240112]
[1747757761615,2.86937,2473.7,2473.6,0.44240112]
[1747757761923,4.11937,2473.7,2473.6,0.44240112]
[1747757762126,1.4107,2473.7,2473.6,1.25070112]
[1747757762332,0.00605718,2474.0,2473.9,0.80821]
[1747757762630,1.41675718,2474.0,2473.8,0.80824]
[1747757762815,2.22492718,2474.0,2473.7,5.42365]
[1747757763021,3.43789718,2474.0,2473.8,2.21584]
[1747757763220,1.41675718,2474.0,2473.8,2.21583]
[1747757763421,3.43785718,2474.0,2473.8,1.4076]
[1747757763730,0.80821,2473.9,2473.6,13.14799]
[1747757763926,1.4008,2473.8,2473.6,13.7044]
[1747757764120,2.02723718,2474.0,2473.6,13.7044]
[1747757764121,2.02723718,2474.0,2473.6,10.9644]
[1747757764327,2.21503718,2474.0,2473.7,2.17294]
[1747757764526,1.40685718,2474.0,2473.7,2.17294]
[1747757764727,3.42799718,2474.0,2473.8,0.80822]
[1747757765722,0.80827,2473.7,2473.6,0.08486477]
[1747757766121,2.021305,2473.7,2473.6,0.08486477]
[1747757766433,0.80826,2473.8,2473.6,0.08486477]
[1747757766631,0.80826,2473.8,2473.6,1.37576477]
[1747757766827,2.02111,2473.2,2472.4,1.2909]
[1747757767027,5.22908,2473.0,2472.4,1.2909]
[1747757767332,0.80866,2472.6,2472.4,1.2909]
[1747757767535,2.10706,2472.5,2472.4,1.2909]
[1747757768520,1.2984,2472.5,2472.4,1.2909]
[1747757768725,2.10706,2472.5,2472.4,1.2909]
[1747757769629,3.21385718,2472.7,2472.4,1.2909]
[1747757769828,3.21385718,2472.7,2472.4,2.09959]
[1747757770033,0.80866,2472.5,2472.4,9.5259]
[1747757770233,0.80866,2472.5,2472.4,10.975]
[1747757770430,0.80866,2472.5,2472.4,2.74]
[1747757771233,0.80873,2472.3,2472.2,1.2894]
[1747757771536,0.80872,2472.4,2472.2,1.2894]
[1747757771729,0.80873,2472.3,2472.2,1.2894]
[1747757772037,0.80872,2472.4,2472.2,2.09816]
[1747757772232,0.80872,2472.4,2472.3,1.3467]
[1747757773137,0.80872,2472.4,2472.3,4.0867]
[1747757776135,0.80872,2472.4,2472.3,2.74]
[1747757776334,7.871935,2472.4,2471.7,3.2078]
[1747757776638,2.02159,2472.6,2472.1,3.2078]
[1747757776837,3.21385718,2472.7,2472.3,0.80873]
[1747757777042,0.80866,2472.5,2472.4,12.8631]
[1747757777240,0.00605718,2472.7,2472.4,12.8631]
[1747757777439,0.00605718,2472.7,2472.6,0.80863]
[1747757777831,5.22877,2473.4,2472.6,0.80863]
[1747757777832,3.2078,2473.9,2472.6,5.0]
[1747757778040,0.80824,2473.8,2473.7,3.2078]
[1747757778538,2.02068,2473.7,2473.3,8.24]
[1747757778741,1.3931,2473.7,2473.3,8.24]
[1747757779041,0.8083,2473.6,2473.4,2.15904]
[1747757779240,0.00605718,2473.7,2473.6,0.8083]
[1747757779437,0.00605718,2473.7,2473.6,2.159]
[1747757779744,0.00605718,2473.7,2473.6,7.159]
[1747757780843,0.00605718,2473.7,2473.5,5.9478]
[1747757781441,0.00605718,2473.7,2473.6,10.3347]
[1747757781949,0.00605718,2473.7,2473.6,16.0087]
[1747757782650,0.80804,2474.4,2473.7,2.02067]
[1747757782835,4.5201,2474.6,2474.1,4.01592]
[1747757783145,0.80807,2474.3,2474.2,9.5264]
[1747757783344,4.5201,2474.6,2474.2,9.5264]
[1747757783548,4.52615718,2474.6,2474.3,2.09546]
[1747757783842,0.80804,2474.4,2474.3,2.09546]
[1747757784241,4.52615718,2474.6,2474.4,0.80802]
[1747757784449,1.31835718,2474.6,2474.5,1.2985]
[1747757784643,0.00605718,2474.6,2474.5,2.10651]
[1747757784834,0.81403718,2474.6,2474.5,1.2985]
[1747757785039,0.00605718,2474.6,2474.5,1.2985]
[1747757785235,0.00605718,2474.6,2474.5,9.84651]
[1747757785444,3.2078,2475.6,2474.7,2.01987]
[1747757785740,3.2078,2475.6,2475.4,4.01551]
[1747757785741,1.3916,2475.5,2475.4,4.01551]
[1747757785943,3.2078,2476.0,2475.6,0.80763]
[1747757786140,0.80765,2475.6,2475.5,1.2985]
[1747757786335,0.80765,2475.6,2475.5,9.5365]
[1747757787146,0.80765,2475.6,2475.5,12.2765]
[1747757787447,7.017405,2475.6,2475.5,1.82566]
[1747757787649,7.017405,2475.6,2474.6,3.2078]
[1747757787650,0.80795,2474.7,2474.6,3.2078]
[1747757787949,5.22737,2475.1,2474.6,3.2078]
[1747757788151,0.80789,2474.9,2474.6,4.01576]
[1747757788350,1.3446,2475.0,2474.9,0.80788]
[1747757788647,0.80778,2475.2,2475.1,0.32311176]
[1747757788842,2.82786,2475.2,2475.1,0.32311176]
[1747757789045,0.80778,2475.2,2475.1,0.32311176]
[1747757789945,0.80778,2475.2,2475.0,11.4438]
[1747757790143,1.3446,2475.3,2475.0,11.4438]
[1747757790449,0.80781,2475.1,2475.0,11.4438]
[1747757791148,0.8078,2475.2,2475.0,11.4438]
[1747757791348,0.80766,2475.6,2475.1,8.561]
[1747757791558,1.3939,2475.7,2475.3,3.2078]
[1747757791750,3.2078,2476.0,2475.3,3.2078]
[1747757791955,0.81364718,2475.8,2475.6,0.80764]
[1747757792150,3.2078,2476.6,2475.7,11.7688]
[1747757792448,0.80741,2476.4,2476.1,3.2078]
[1747757792750,0.80741,2476.4,2476.1,11.7688]
[1747757792951,1.3939,2476.5,2476.1,11.7688]
[1747757793256,0.00605718,2476.5,2476.4,3.2078]
[1747757793449,0.00605718,2476.5,2476.4,4.01519]
[1747757793651,0.81341718,2476.5,2476.4,3.2078]
[1747757794047,0.00605718,2476.5,2476.4,4.01419]
[1747757794244,0.00605718,2476.5,2476.4,6.75419]
[1747757794443,0.81341718,2476.5,2476.4,2.74]
[1747757794652,2.83243719,2476.5,2476.4,2.74]
[1747757794952,0.81341718,2476.5,2476.4,5.9478]
[1747757795950,0.81341718,2476.5,2476.4,2.74]
[1747757796257,0.80745,2476.3,2476.1,4.02131718]
[1747757796452,1.325,2476.4,2476.2,8.559]
[1747757796658,0.80742,2476.3,2476.2,8.559]
[1747757797056,0.80742,2476.3,2476.1,3.21385718]
[1747757797057,0.80745,2476.2,2476.1,3.21385718]
[1747757797257,0.80765,2475.6,2475.5,3.2078]
[1747757797755,0.80765,2475.7,2475.2,11.7658]
[1747757797960,0.80764,2475.7,2475.5,0.80767]
[1747757798162,1.3345,2475.8,2475.5,5.9478]
[1747757798460,2.14215,2475.6,2475.5,2.74]
[1747757798961,4.161905,2475.6,2475.5,2.74]
[1747757799259,0.80791,2474.8,2474.7,11.7658]
[1747757799452,0.80791,2474.8,2474.7,8.558]
[1747757799657,2.828315,2474.8,2474.7,8.558]
[1747757799854,1.3073,2475.0,2474.7,11.7658]
[1747757800162,2.01881,2476.0,2475.0,2.01961]
[1747757800354,0.80769,2475.5,2475.4,3.2078]
[1747757800547,0.80778,2475.2,2475.1,11.7668]
[1747757800757,0.80777,2475.3,2475.1,12.57459]
[1747757800957,1.3073,2475.4,2475.1,11.7668]
[1747757801260,2.11503,2475.4,2475.1,11.7668]
[1747757801563,1.3073,2475.4,2475.3,0.80775]
[1747757801859,0.80767,2475.6,2475.4,0.80769]
[1747757802057,0.80765,2475.6,2475.5,8.559]
[1747757802258,4.134745,2475.6,2475.5,8.559]
[1747757802557,0.80771,2475.4,2475.3,11.299]
[1747757802755,0.80771,2475.4,2475.3,12.10675]
[1747757802957,1.3073,2475.6,2475.4,0.80771]
[1747757803159,4.134805,2475.6,2475.4,4.01551]
[1747757803466,0.80768,2475.5,2475.4,3.2078]
[1747757803665,2.14638,2475.5,2475.4,3.2078]
[1747757803965,0.80771,2475.4,2475.3,9.36575]
[1747757804260,0.80778,2475.2,2475.1,3.2078]
[1747757804564,0.80776,2475.3,2475.2,0.80777]
[1747757804753,2.14643,2475.4,2475.3,0.80775]
[1747757804959,1.3387,2475.4,2475.3,0.80775]
[1747757805260,0.80778,2475.3,2475.2,0.80777]
[1747757805456,1.3387,2475.4,2475.1,3.2078]
[1747757805457,0.80778,2475.2,2475.1,3.2078]
[1747757805859,2.02008,2475.2,2475.1,4.01561]
[1747757806060,0.80776,2475.3,2475.2,0.80775]
[1747757807261,3.21385718,2475.7,2475.6,0.80765]
[1747757807466,4.57095718,2475.7,2475.6,0.80765]
[1747757807764,7.39824718,2475.7,2475.6,0.80765]
[1747757807959,6.59062718,2475.7,2475.6,0.80765]
[1747757808164,5.37857718,2475.7,2475.6,2.21725]
[1747757808367,2.17077718,2475.7,2475.6,2.21725]
[1747757808760,1.36315718,2475.7,2475.6,2.21725]
[1747757809265,0.6666,2476.5,2476.3,0.80739]
[1747757809462,1.3109,2476.4,2476.3,0.80742]
[1747757809660,5.22581,2477.0,2476.4,3.2078]
[1747757809866,0.80735,2476.6,2476.5,0.80734]
[1747757810067,0.80731,2476.7,2476.6,0.8073]
[1747757810260,1.31695718,2476.9,2476.8,0.80726]
[1747757810461,3.33565218,2476.9,2476.8,0.80726]
[1747757811262,4.14288218,2476.9,2476.8,2.09446]
[1747757812068,0.80726,2476.8,2476.7,3.2078]
[1747757812255,2.20336,2476.8,2476.7,11.7648]
[1747757812459,2.20336,2476.8,2476.7,12.57209]
[1747757812668,1.3961,2476.8,2476.7,12.57209]
[1747757812870,2.20336,2476.8,2476.7,11.7648]
[1747757813064,4.222135,2476.8,2476.7,11.7648]
[1747757813367,4.222135,2476.8,2476.7,8.557]
[1747757813768,4.222135,2476.8,2476.7,8.87994762]
[1747757813968,4.222135,2476.8,2476.7,0.32294762]
[1747757815364,0.80736,2476.5,2476.4,3.21385718]
[1747757815564,0.80736,2476.5,2476.4,0.00605718]
[1747757815861,0.80742,2476.3,2476.2,0.29244728]
[1747757816261,7.8266,2476.3,2476.2,0.29244728]
[1747757816664,9.1403,2476.3,2476.2,0.29244728]
[1747757816872,0.80749,2476.1,2476.0,0.00605718]
[1747757817363,2.826835,2476.1,2476.0,0.00605718]
[1747757818371,1.3137,2476.3,2476.0,0.00605718]
[1747757818673,1.3137,2476.3,2476.2,4.01525]
[1747757818975,1.3137,2476.3,2476.2,12.57125]
[1747757819165,2.12112,2476.3,2476.2,11.7638]
[1747757819670,2.12112,2476.3,2476.2,12.08680731]
[1747757820369,4.1403,2476.3,2476.2,12.08680731]
[1747757820975,1.3137,2476.3,2476.2,12.89425731]
[1747757821276,0.80742,2476.4,2476.3,0.8074]
[1747757821468,0.80742,2476.4,2476.3,8.626]
[1747757821663,0.80742,2476.3,2476.2,5.12100249]
[1747757821872,2.20252,2476.3,2476.2,0.54360249]
[1747757822174,4.2217,2476.3,2476.2,0.54360249]
[1747757822772,4.2217,2476.3,2476.0,0.29850446]
[1747757822973,5.22597,2476.8,2476.2,3.2078]
[1747757823176,0.80739,2476.4,2476.3,2.177]
[1747757823368,0.80739,2476.4,2476.3,1.3696]
[1747757824074,1.3951,2476.5,2476.2,3.2078]
[1747757824075,0.80742,2476.3,2476.2,3.2078]
[1747757824272,0.80749,2476.1,2476.0,0.00605718]
[1747757824776,2.826835,2476.1,2476.0,0.00605718]
[1747757824979,2.826835,2476.1,2476.0,0.44353049]
[1747757826076,0.80744,2476.3,2476.0,1.83873049]
[1747757826270,1.315,2476.3,2476.2,0.80745]
[1747757826475,1.315,2476.3,2476.2,9.43345]
[1747757826778,2.12244,2476.3,2476.2,8.626]
[1747757827281,0.80749,2476.1,2476.0,1.72431423]
[1747757827479,0.80749,2476.1,2476.0,8.95511423]
[1747757827777,2.826835,2476.1,2476.0,8.95511423]
[1747757828080,2.826835,2476.1,2476.0,8.92648932]
[1747757828472,2.826835,2476.1,2476.0,9.73400932]
[1747757828766,0.80749,2476.1,2476.0,9.73400932]
[1747757828968,2.01815,2476.8,2476.0,8.95509769]
[1747757829169,0.80743,2476.3,2476.2,0.80742]
[1747757829385,0.80745,2476.2,2476.1,1.3202]
[1747757829677,0.80744,2476.3,2476.1,9.9462]
[1747757829868,1.2798,2476.4,2476.3,0.80739]
[1747757830070,1.2798,2476.4,2476.3,4.01519]
[1747757830270,3.85165718,2476.9,2476.3,3.2078]
[1747757830271,3.21385718,2476.9,2476.3,3.2078]
[1747757830478,0.81329718,2476.9,2476.8,0.80726]
[1747757830881,0.80729,2476.7,2476.6,11.8338]
[1747757831066,0.80729,2476.7,2476.6,8.626]
[1747757831265,0.80736,2476.5,2476.4,2.13358]
[1747757831470,0.80739,2476.4,2476.3,3.2078]
[1747757831683,2.12649,2476.4,2476.3,8.626]
[1747757831881,2.12649,2476.4,2476.3,9.43342]
[1747757832369,2.68648718,2476.9,2476.3,13.16]
[1747757832573,0.80734,2476.6,2476.5,0.80732]
[1747757833180,0.80731,2476.7,2476.6,0.80729]
[1747757833568,0.00605718,2476.9,2476.8,0.80726]
[1747757833779,0.81328718,2476.9,2476.8,0.80726]
[1747757833975,0.81328718,2476.9,2476.8,1.3145]
[1747757834975,0.80729,2476.7,2476.6,4.01512]
[1747757835279,0.80729,2476.7,2476.6,3.82535345]
[1747757835488,0.80729,2476.7,2476.6,4.63267345]
[1747757835782,2.20899,2476.8,2476.7,0.80729]
[1747757836079,4.227795,2476.8,2476.7,0.80729]
[1747757836377,0.00605718,2476.9,2476.8,0.80726]
[1747757836773,0.00605718,2476.9,2476.8,2.82206]
[1747757836974,0.00605718,2476.9,2476.8,3.14499835]
[1747757837680,0.00605718,2476.9,2476.8,3.82739835]
[1747757837975,0.00605718,2476.9,2476.8,8.82739835]
[1747757838179,0.00605718,2476.9,2476.8,11.56739835]
[1747757838682,0.00605718,2476.9,2476.8,12.00944491]
[1747757838882,0.98371306,2477.7,2477.6,0.807]
[1747757839073,0.98371306,2477.7,2477.4,3.2078]
[1747757839384,0.80718,2477.1,2477.0,0.80715]
[1747757839578,0.80719,2477.0,2476.9,2.1673]
[1747757839779,1.3085,2477.0,2476.9,10.7913]
[1747757839979,4.1343,2477.0,2476.9,9.24151479]
[1747757840181,4.1343,2477.0,2476.9,0.61751479]
[1747757840984,15.2221,2477.0,2476.9,0.61751479]
[1747757841185,15.2221,2477.0,2476.7,0.00605718]
[1747757841186,0.80726,2476.8,2476.7,0.00605718]
[1747757841783,2.826035,2476.8,2476.7,0.00605718]
[1747757842483,4.173435,2476.8,2476.7,0.00605718]
[1747757843184,1.3474,2476.8,2476.7,0.00605718]
[1747757843486,0.80718,2477.1,2477.0,0.80718]
[1747757843682,4.17311,2477.1,2477.0,0.80718]
[1747757843875,1.3474,2477.1,2477.0,0.80718]
[1747757844885,2.15456,2477.1,2477.0,0.80718]
[1747757845383,3.36593,2477.1,2476.8,13.8201]
[1747757845586,0.80723,2476.9,2476.8,5.1961]
[1747757845789,0.80723,2476.9,2476.8,12.469]
[1747757845980,0.80723,2476.9,2476.8,9.2612]
[1747757846185,0.80726,2476.8,2476.7,0.30063362]
[1747757846484,1.2832,2476.8,2476.7,9.73192362]
[1747757846994,0.80721,2477.0,2476.9,0.80723]
[1747757847380,0.80723,2476.9,2476.8,2.08493]
[1747757847685,2.09043,2476.9,2476.8,1.2777]
[1747757847983,0.80726,2476.8,2476.7,0.3289979]
[1747757848189,2.09046,2476.8,2476.7,0.3289979]
[1747757848387,2.09046,2476.8,2476.0,0.58361698]
[1747757848388,0.80749,2476.1,2476.0,0.58361698]
[1747757848587,0.80762,2475.7,2475.4,4.23025615]
[1747757848779,0.80762,2475.7,2475.4,5.03796615]
[1747757848980,0.80762,2475.7,2475.5,1.3509]
[1747757848981,2.82729,2475.7,2475.5,1.3509]
[1747757849182,0.80765,2475.6,2475.5,1.3509]
[1747757849590,2.827405,2475.6,2475.5,1.3509]
[1747757850587,0.80771,2475.4,2475.3,0.00605718]
[1747757850781,6.06771,2475.4,2475.3,0.00605718]
[1747757850983,8.087625,2475.4,2475.3,0.00605718]
[1747757851392,13.087625,2475.4,2475.3,0.00605718]
[1747757851598,15.150025,2475.4,2475.3,0.00605718]
[1747757851781,4.890025,2475.4,2475.3,0.00605718]
[1747757852089,0.80762,2475.7,2475.3,0.00605718]
[1747757852287,2.019795,2475.7,2475.3,0.00605718]
[1747757852492,0.80771,2475.5,2475.3,0.81380718]
[1747757852794,0.80771,2475.5,2475.4,1.3206]
[1747757852987,0.80771,2475.4,2475.3,0.00605718]
[1747757853188,2.20991,2475.4,2475.3,0.00605718]
[1747757853392,4.229825,2475.4,2475.3,0.00605718]
[1747757856298,4.229825,2475.4,2475.3,0.81380718]
[1747757856299,0.80771,2475.4,2475.3,0.81380718]
[1747757856489,3.2078,2475.6,2475.3,1.31195718]
[1747757856795,3.2078,2475.6,2475.4,0.8077]
[1747757856995,0.80771,2475.4,2475.3,0.81377718]
[1747757857188,0.80771,2475.4,2475.3,0.00605718]
[1747757857886,2.827625,2475.4,2475.3,0.00605718]
[1747757858389,0.80771,2475.4,2475.3,0.00605718]
[1747757858795,2.827625,2475.4,2475.3,0.00605718]
[1747757861684,0.80771,2475.4,2475.3,0.00605718]
[1747757861885,0.80771,2475.4,2475.3,0.81380718]
[1747757863299,6.53144,2475.6,2475.3,2.02539718]
[1747757863300,4.5123,2475.6,2475.3,2.02539718]
[1747757863598,4.01545,2475.6,2475.5,0.80768]
[1747757863895,0.00605718,2475.8,2475.6,0.80763]
[1747757864095,0.80768,2475.6,2475.5,0.80764]
[1747757864295,0.80764,2475.7,2475.6,0.80762]
[1747757864495,0.80765,2475.6,2475.5,2.74]
[1747757864690,0.80764,2475.7,2475.5,2.74]
[1747757864895,0.80764,2475.7,2475.6,0.80762]
[1747757865091,0.81366718,2475.8,2475.7,0.80762]
[1747757865399,0.00605718,2475.8,2475.7,0.80762]
[1747757865595,0.00605718,2475.8,2475.7,17.78442]
[1747757866394,0.00605718,2475.8,2475.7,12.78442]
[1747757866591,0.00605718,2475.8,2475.7,13.46242]
[1747757866994,0.00605718,2475.8,2475.7,14.4710601]
[1747757869202,3.2078,2476.5,2476.1,2.0187]
[1747757869397,0.80735,2476.6,2476.5,0.80732]
[1747757869595,4.5552,2476.8,2476.5,0.80732]
[1747757869801,0.80735,2476.6,2476.5,0.80732]
[1747757870194,0.80745,2476.2,2476.1,3.2078]
[1747757870390,0.80745,2476.2,2475.7,3.38253]
[1747757870391,0.80754,2476.0,2475.9,0.80751]
[1747757870592,1.3207,2476.3,2475.8,8.768]
[1747757870789,3.2078,2476.6,2475.9,3.2078]
[1747757871004,0.80744,2476.3,2476.2,0.80743]
[1747757871194,1.3207,2476.5,2476.3,0.80741]
[1747757871195,0.80741,2476.4,2476.3,0.80741]
[1747757871396,4.147305,2476.5,2476.4,0.80739]
[1747757871595,2.019225,2476.5,2476.4,0.80739]
[1747757871800,0.80749,2476.1,2476.0,0.32300108]
[1747757872194,0.80749,2476.1,2476.0,1.13052108]
[1747757873005,0.80742,2476.3,2476.2,0.80744]
[1747757873305,0.80742,2476.3,2476.0,0.32300108]
[1747757873306,1.3008,2476.3,2476.0,0.32300108]
[1747757873604,0.80749,2476.1,2476.0,1.13049108]
[1747757874301,0.80765,2475.6,2475.5,0.44082115]
[1747757874802,6.035205,2475.6,2475.5,0.44082115]
[1747757875306,0.80771,2475.4,2475.3,0.00605718]
[1747757876402,0.80771,2475.4,2475.3,1.35475718]
[1747757877102,2.827625,2475.4,2475.3,0.00605718]
[1747757877299,5.487625,2475.4,2475.3,0.00605718]
[1747757877705,6.883125,2475.4,2475.3,0.00605718]
[1747757880507,11.883125,2475.4,2475.3,7.18e-06]
[1747757881203,14.623125,2475.4,2475.3,7.18e-06]
[1747757881812,8.227625,2475.4,2475.3,7.18e-06]
[1747757882013,2.74,2475.4,2475.3,7.18e-06]
[1747757882315,0.80771,2475.4,2475.3,4.76660718]
[1747757884215,0.80771,2475.4,2475.3,5.57435718]
[1747757884508,0.80771,2475.4,2475.3,4.76660718]
[1747757887111,0.80771,2475.4,2475.3,5.57435718]
[1747757887911,0.80771,2475.4,2475.3,5.89747638]
[1747757889211,0.80771,2475.4,2475.3,5.08972638]
[1747757889712,0.80771,2475.5,2475.3,5.08972638]
[1747757889905,0.80762,2475.8,2475.7,0.80759]
[1747757890211,2.01876,2476.1,2475.7,8.723]
[1747757890414,0.80755,2475.9,2475.8,10.1003]
[1747757891011,0.80755,2475.9,2475.8,10.4234192]
[1747757891710,0.80755,2475.9,2475.8,1.7004192]
[1747757892108,0.80755,2476.0,2475.9,0.80752]
[1747757892311,0.80755,2476.0,2475.9,2.22392]
[1747757893017,0.80752,2476.1,2476.0,0.80749]
[1747757893209,0.80752,2476.1,2476.0,3.54749]
[1747757893809,4.08830449,2476.4,2476.0,4.1564]
[1747757894112,0.80749,2476.2,2476.1,0.80745]
[1747757894307,0.66452449,2476.4,2476.1,8.722]
[1747757894514,1.47195449,2476.4,2476.3,0.80742]
[1747757895111,0.80743,2476.4,2476.3,0.80742]
[1747757895314,1.47184449,2476.6,2476.5,0.80735]
[1747757895519,1.47184449,2476.6,2476.5,9.52935]
[1747757895712,0.66452449,2476.6,2476.5,9.52935]
[1747757896218,0.66452449,2476.6,2476.5,12.95295]
[1747757897109,0.66452449,2476.6,2476.5,13.2760692]
[1747757897310,0.66452449,2476.6,2476.5,21.4838692]
[1747757897509,0.98977024,2476.8,2476.7,0.80729]
[1747757897818,0.98977024,2476.8,2476.7,0.80629]
[1747757898019,0.98977024,2476.8,2476.7,5.80529]
[1747757898417,0.98977024,2476.8,2476.7,5.80429]
[1747757898614,0.98977024,2476.8,2476.7,5.80329]
[1747757899016,2.01491252,2477.9,2476.7,5.0]
[1747757899317,0.80703,2477.5,2477.4,4.01485]
[1747757899511,0.80703,2477.5,2477.4,8.719]
[1747757899712,0.80703,2477.5,2477.4,9.52606]
[1747757899916,0.80702,2477.6,2477.5,0.80702]
[1747757900114,2.21522,2477.6,2477.5,0.80702]
[1747757900616,3.426325,2477.6,2477.5,8.719]
[1747757900814,1.4082,2477.6,2477.5,9.52603]
[1747757901020,0.80699,2477.7,2477.6,0.807]
[1747757901221,0.80698,2477.7,2477.6,0.80698]
[1747757901521,0.807,2477.6,2477.5,8.719]
[1747757901820,1.3927,2477.6,2477.3,0.00605718]
[1747757902020,2.1997,2477.6,2477.5,8.719]
[1747757902513,0.80706,2477.4,2477.3,0.81312718]
[1747757902819,0.80705,2477.5,2477.4,0.80704]
[1747757903022,2.19975,2477.5,2477.4,0.80704]
[1747757903222,2.018205,2477.5,2477.4,0.80704]
[1747757903413,0.80699,2477.7,2477.6,0.80697]
[1747757903717,0.80704,2477.5,2477.4,0.80703]
[1747757903918,0.80701,2477.6,2477.5,0.80699]
[1747757904123,1.31825718,2477.8,2477.3,11.93185718]
[1747757904418,2.12523718,2477.8,2477.7,0.80696]
[1747757904612,0.00605718,2477.8,2477.7,9.52496]
[1747757905717,3.2078,2478.2,2478.1,0.80683]
[1747757905921,2.11897,2478.3,2478.2,0.8068]
[1747757906219,0.8068,2478.2,2478.1,9.52381]
[1747757906518,2.1435,2478.2,2478.1,9.52381]
[1747757907021,3.354335,2478.2,2478.1,0.80681]
[1747757907216,1.3367,2478.2,2478.1,9.52381]
[1747757907421,0.80678,2478.3,2478.2,0.8068]
[1747757907623,2.14951718,2478.4,2478.3,0.80677]
[1747757907814,0.80677,2478.3,2478.2,2.19798]
[1747757908013,2.14347,2478.3,2478.2,2.19798]
[1747757910120,1.3367,2478.3,2478.2,2.19798]
[1747757910317,0.00605718,2478.4,2478.3,0.80677]
[1747757910519,1.36975718,2478.4,2478.3,0.80677]
[1747757910821,0.00605718,2478.4,2478.3,0.80677]
[1747757911021,0.81279718,2478.4,2478.3,2.18537]
[1747757911222,0.81279718,2478.4,2478.3,9.52177]
[1747757911720,0.80677,2478.3,2478.2,4.01458]
[1747757911921,1.3637,2478.3,2478.2,12.72958]
[1747757912322,2.17047,2478.3,2478.2,12.72958]
[1747757912522,2.17047,2478.3,2478.2,8.715]
[1747757912717,2.17047,2478.3,2478.1,2.74]
[1747757912718,0.8068,2478.2,2478.1,2.74]
[1747757913023,2.194,2478.2,2478.1,2.74]
[1747757913218,0.80693,2477.8,2477.7,0.54177268]
[1747757913626,2.82489,2477.8,2477.7,0.54177268]
[1747757914424,2.82489,2477.8,2477.3,11.86685718]
[1747757914425,0.80706,2477.5,2477.3,11.86685718]
[1747757914724,0.80706,2477.5,2477.4,0.80706]
[1747757914920,0.80689,2478.0,2477.9,0.8069]
[1747757915114,0.80685,2478.1,2478.0,0.80684]
[1747757915318,0.80687,2478.0,2477.9,9.45988]
[1747757915527,0.80687,2478.0,2477.9,8.653]
[1747757915729,0.80687,2478.0,2477.9,9.4599]
[1747757915928,0.80687,2478.0,2477.9,8.653]
[1747757916128,0.8069,2477.9,2477.8,0.80692]
[1747757916421,0.80685,2478.1,2478.0,0.80684]
[1747757916624,0.80682,2478.2,2478.1,0.80681]
[1747757916814,5.38059,2478.3,2478.2,0.8068]
[1747757917019,2.17279,2478.3,2478.2,9.4598]
[1747757917219,4.190345,2478.3,2478.2,9.4598]
[1747757917420,0.80687,2478.0,2477.9,3.2078]
[1747757917621,2.824665,2478.0,2477.9,8.653]
[1747757918331,1.366,2478.3,2477.9,8.653]
[1747757918532,2.17279,2478.3,2478.2,0.8068]
[1747757918730,4.02062718,2478.4,2478.3,0.80677]
[1747757919030,4.02062718,2478.4,2478.3,9.45977]
[1747757919231,3.21385718,2478.4,2478.3,9.45977]
[1747757919432,4.02059718,2478.4,2478.3,9.45977]
[1747757919631,3.21385718,2478.4,2478.3,9.45977]
[1747757920325,4.02059718,2478.4,2478.3,9.45977]
[1747757920524,3.21385718,2478.4,2478.3,9.45977]
[1747757921236,3.21385718,2478.4,2478.3,9.78259152]
[1747757921534,4.02059718,2478.4,2478.3,9.78259152]
[1747757921836,3.21385718,2478.4,2478.3,8.97582152]
[1747757922036,3.21385718,2478.4,2478.3,9.78259152]
[1747757922634,0.00605718,2478.4,2478.3,9.78259152]
[1747757922834,0.00605718,2478.4,2478.3,10.43619152]
[1747757923238,3.2078,2479.0,2478.9,0.80657]
[1747757923437,4.01435,2479.0,2478.9,9.45857]
[1747757923638,6.031335,2479.0,2478.9,9.45857]
[1747757924142,3.2078,2479.0,2478.9,9.45857]
[1747757924447,4.01434,2479.0,2478.9,9.45857]
[1747757924642,0.00605718,2479.2,2479.1,0.80651]
[1747757925338,0.81255718,2479.2,2479.1,0.80651]
[1747757925538,0.00605718,2479.2,2479.1,1.12933152]
[1747757926841,0.00605718,2479.2,2479.1,6.12933152]
[1747757927142,0.00605718,2479.2,2479.1,6.42289508]
[1747757927449,0.00605718,2479.2,2479.1,10.07289508]
[1747757928646,0.00605718,2479.2,2479.1,1.42289508]
[1747757928948,0.00605718,2479.2,2479.1,10.07289508]
[1747757929544,0.81253718,2479.2,2479.1,9.26538508]
[1747757929838,4.15055718,2479.2,2479.1,0.61638508]
[1747757930149,6.89055718,2479.2,2479.1,9.26538508]
[1747757930650,6.89055718,2479.2,2479.1,8.97182152]
[1747757932254,6.89055718,2479.2,2479.1,0.32282152]
[1747757932458,6.89055718,2479.2,2479.1,8.97182152]
[1747757932954,6.89055718,2479.2,2479.1,9.77833152]
[1747757933152,4.15055718,2479.2,2479.1,8.97182152]
[1747757934050,4.15055718,2479.2,2479.1,1.12833152]
[1747757934251,4.15055718,2479.2,2479.1,9.77633152]
[1747757934554,2.13373718,2479.2,2479.1,9.77533152]